bitfinex-derivatives/quotes_BTCF0:USTF0_20250320
["timestamp","ask_amount","ask_price","bid_price","bid_amount"]
[1742483619758,0.1162151,86080.0,86079.0,0.13112]
[1742483619957,0.1162164,86079.0,86078.0,0.3608]
[1742483620262,0.3142164,86079.0,86078.0,0.3608]
[1742483621063,0.198,86079.0,86070.0,0.1896]
[1742483621263,0.11623,86069.0,86063.0,0.27802554]
[1742483621668,0.45219517,86069.0,86068.0,0.00017423]
[1742483622260,0.44065,86069.0,86068.0,0.00017423]
[1742483622465,0.33529564,86069.0,86066.0,0.34747962]
[1742483622665,0.1162394,86062.0,86061.0,0.41697555]
[1742483622867,0.4770394,86062.0,86061.0,0.41697555]
[1742483623068,0.1162394,86062.0,86061.0,0.53321635]
[1742483623367,0.1162394,86062.0,86061.0,0.41697555]
[1742483624664,0.1162502,86054.0,86053.0,0.00017423]
[1742483624972,0.6081702,86054.0,86053.0,0.00017423]
[1742483625162,0.1162637,86044.0,86043.0,0.4770641]
[1742483625360,0.0581311,86046.0,86043.0,0.4189319]
[1742483625663,0.00940555,86045.0,86044.0,0.1162637]
[1742483625866,0.00940555,86045.0,86044.0,0.7192637]
[1742483626258,0.00940555,86045.0,86044.0,2.2192637]
[1742483626459,0.1945,86059.0,86058.0,0.1162448]
[1742483626975,0.3107435,86059.0,86058.0,0.1162448]
[1742483627265,0.32015839,86059.0,86058.0,0.1162448]
[1742483627469,0.32015839,86059.0,86058.0,0.5166448]
[1742483627967,0.00941489,86059.0,86058.0,0.5166448]
[1742483629363,0.12565839,86059.0,86058.0,0.4004]
[1742483629663,0.1162502,86054.0,86053.0,0.3608]
[1742483629862,0.1162502,86054.0,86053.0,0.5687]
[1742483630166,0.1162637,86044.0,86041.0,0.00852952]
[1742483630664,0.1162538,86052.0,86042.0,0.1966]
[1742483630870,0.1162624,86046.0,86045.0,0.11626]
[1742483631174,0.12567729,86046.0,86045.0,0.31286]
[1742483631469,0.1162624,86045.0,86044.0,0.1997]
[1742483631667,0.20851489,86046.0,86043.0,0.3638]
[1742483631668,0.1162637,86044.0,86043.0,0.3638]
[1742483631862,0.3153637,86044.0,86043.0,0.3638]
[1742483632065,0.3153637,86044.0,86043.0,0.003]
[1742483632263,0.13112,86063.0,86051.0,0.0581267]
[1742483632568,0.1162516,86053.0,86052.0,0.5077518]
[1742483632757,0.1162516,86053.0,86052.0,0.8685518]
[1742483633654,0.1162516,86053.0,86052.0,0.7523]
[1742483634060,0.1162516,86053.0,86052.0,0.3608]
[1742483635370,0.1162516,86053.0,86049.0,0.13112]
[1742483635371,0.1162556,86050.0,86049.0,0.13112]
[1742483635556,0.1162637,86044.0,86039.0,0.1162697]
[1742483635754,0.1162637,86044.0,86043.0,0.5605]
[1742483635968,0.5187637,86044.0,86043.0,0.5605]
[1742483636475,0.5187637,86044.0,86043.0,0.6767651]
[1742483636476,0.5177637,86044.0,86043.0,0.6767651]
[1742483636865,0.5177637,86044.0,86043.0,0.7671]
[1742483637066,0.52712366,86044.0,86043.0,0.7671]
[1742483637572,0.52712366,86044.0,86043.0,0.5665]
[1742483638467,0.52712366,86044.0,86043.0,0.006]
[1742483639067,0.5177637,86044.0,86043.0,0.006]
[1742483639970,0.5177637,86044.0,86043.0,0.003]
[1742483640168,0.4045,86044.0,86043.0,0.1162651]
[1742483640371,0.002,86044.0,86043.0,0.1162651]
[1742483640567,0.002,86044.0,86043.0,0.5170651]
[1742483640878,0.13799467,86053.0,86052.0,0.1162529]
[1742483641173,0.13799467,86053.0,86052.0,0.4770529]
[1742483641567,0.17249334,86058.0,86057.0,0.1162462]
[1742483641871,0.17249334,86058.0,86057.0,0.4770462]
[1742483642065,0.20703706,86064.0,86063.0,0.1162381]
[1742483642274,0.20703706,86064.0,86063.0,0.2473181]
[1742483642574,0.20703706,86064.0,86063.0,0.64151403]
[1742483642778,0.20703706,86064.0,86063.0,0.33237593]
[1742483642779,0.32327376,86064.0,86063.0,0.33237593]
[1742483642966,0.32327376,86064.0,86063.0,0.32148]
[1742483643166,0.32327376,86064.0,86063.0,0.1904]
[1742483643565,0.32327376,86064.0,86063.0,0.3066381]
[1742483643766,0.20703706,86064.0,86063.0,0.3066381]
[1742483644186,0.18744,86066.0,86065.0,0.1162354]
[1742483644372,0.1162367,86064.0,86063.0,0.3066381]
[1742483644874,0.1162367,86064.0,86060.0,0.14192446]
[1742483644875,0.0581197,86062.0,86058.0,0.3608]
[1742483645075,0.00017423,86067.0,86058.0,0.3715458]
[1742483645375,0.00017423,86067.0,86066.0,0.477034]
[1742483646480,0.00017423,86067.0,86066.0,0.875734]
[1742483646876,0.11640693,86067.0,86066.0,0.7595]
[1742483647376,0.11640693,86067.0,86066.0,0.875734]
[1742483647377,0.11740693,86067.0,86066.0,0.875734]
[1742483647579,0.32120693,86067.0,86066.0,0.5671]
[1742483647765,0.20497423,86067.0,86058.0,0.3608]
[1742483647965,0.1162421,86060.0,86059.0,0.3148435]
[1742483648171,0.1917,86066.0,86065.0,0.1162354]
[1742483648371,0.320034,86066.0,86065.0,0.1162354]
[1742483648579,0.3955,86066.0,86065.0,0.1162354]
[1742483648885,0.2038,86066.0,86065.0,0.1162354]
[1742483649079,0.2038,86066.0,86065.0,0.5052354]
[1742483649282,0.00117423,86067.0,86066.0,0.116234]
[1742483649782,0.00117423,86067.0,86066.0,0.505234]
[1742483650281,0.00117423,86067.0,86066.0,0.389]
[1742483650480,0.116234,86066.0,86065.0,0.3608]
[1742483650676,0.3948,86066.0,86065.0,0.4770354]
[1742483650981,0.2025,86066.0,86065.0,0.4770354]
[1742483651483,0.00117423,86067.0,86066.0,0.116234]
[1742483651776,0.00117423,86067.0,86066.0,0.437674]
[1742483651980,0.00117423,86067.0,86066.0,0.631674]
[1742483652576,0.31110693,86067.0,86066.0,0.51544]
[1742483652773,0.1162421,86060.0,86059.0,0.1877]
[1742483653077,0.1162435,86059.0,86058.0,0.01087234]
[1742483653286,0.3680652,86059.0,86058.0,0.1162448]
[1742483653479,0.1162462,86057.0,86056.0,0.2521232]
[1742483653782,0.1162475,86056.0,86055.0,0.00017423]
[1742483653981,0.4961475,86056.0,86055.0,0.00017423]
[1742483654172,0.36084,86068.0,86055.0,0.00017423]
[1742483654471,0.00017423,86067.0,86066.0,0.116234]
[1742483654673,0.1162286,86072.0,86071.0,0.1743358]
[1742483654979,0.1162286,86072.0,86071.0,0.9144358]
[1742483655183,0.1906,86072.0,86071.0,0.9144358]
[1742483655777,0.31622479,86072.0,86071.0,0.9144358]
[1742483656374,0.31622479,86072.0,86071.0,0.9253765]
[1742483657385,0.51892479,86072.0,86071.0,0.9253765]
[1742483657587,0.51992479,86072.0,86071.0,0.9253765]
[1742483657883,0.51992479,86072.0,86071.0,0.7382765]
[1742483658081,0.51992479,86072.0,86071.0,0.6111126]
[1742483658277,0.1162273,86071.0,86070.0,0.49978577]
[1742483658671,0.5116273,86071.0,86070.0,0.49978577]
[1742483658876,0.7090273,86071.0,86070.0,0.49978577]
[1742483659180,0.40479889,86071.0,86070.0,0.49978577]
[1742483659375,0.20209889,86071.0,86070.0,0.61601437]
[1742483659576,0.31954683,86071.0,86070.0,0.81611437]
[1742483659783,0.50714683,86071.0,86070.0,0.81611437]
[1742483659985,0.50814683,86071.0,86070.0,0.81611437]
[1742483660176,0.50851981,86071.0,86070.0,0.81611437]
[1742483660780,0.50851981,86071.0,86070.0,0.69988577]
[1742483660981,0.50851981,86071.0,86070.0,0.49978577]
[1742483661275,0.49912092,86071.0,86070.0,0.49978577]
[1742483661985,0.49912092,86071.0,86051.0,0.20845181]
[1742483661986,0.1162475,86056.0,86051.0,0.20845181]
[1742483662177,0.1162597,86047.0,86046.0,0.27793575]
[1742483662377,0.12567645,86047.0,86046.0,0.27793575]
[1742483662772,0.31787645,86047.0,86046.0,0.27793575]
[1742483662974,0.1162637,86044.0,86043.0,0.27793575]
[1742483663179,0.12719617,86044.0,86043.0,0.27793575]
[1742483663383,0.31005732,86044.0,86043.0,0.27793575]
[1742483663582,0.45984557,86044.0,86043.0,0.27793575]
[1742483663982,0.47100047,86044.0,86043.0,0.27793575]
[1742483664491,0.47100047,86044.0,86043.0,0.28393575]
[1742483664692,0.45984557,86044.0,86043.0,0.28393575]
[1742483665187,0.45984557,86044.0,86037.0,0.34744669]
[1742483665188,0.1162718,86038.0,86037.0,0.34744669]
[1742483665387,0.4864833,86038.0,86037.0,0.34744669]
[1742483665587,0.48648855,86038.0,86037.0,0.34744669]
[1742483666180,0.1162786,86033.0,86032.0,0.41668692]
[1742483666489,0.1162935,86022.0,86021.0,0.4846601]
[1742483666682,0.1238421,86022.0,86021.0,0.4846601]
[1742483666883,0.1163002,86017.0,86016.0,0.54915115]
[1742483667092,0.1163002,86017.0,86012.0,0.1951]
[1742483667093,0.1163056,86013.0,86012.0,0.1951]
[1742483667392,0.1258542,86013.0,86012.0,0.32205088]
[1742483667593,0.12626282,86013.0,86012.0,0.32205088]
[1742483667895,0.12226282,86013.0,86012.0,0.51865088]
[1742483668188,0.01195722,86013.0,86012.0,0.52716493]
[1742483668391,0.00017434,86025.0,86024.0,0.1162908]
[1742483668785,0.00017434,86025.0,86024.0,0.3027908]
[1742483669488,0.11646374,86025.0,86024.0,1.9993908]
[1742483670490,0.11646374,86025.0,86024.0,1.8831]
[1742483670491,0.51216374,86025.0,86024.0,1.8831]
[1742483670684,0.51216374,86025.0,86024.0,0.1966]
[1742483670884,0.51716374,86025.0,86024.0,0.1966]
[1742483671089,0.51716374,86025.0,86024.0,1.6966]
[1742483671288,0.1162908,86024.0,86023.0,0.3608]
[1742483671688,0.5115908,86024.0,86023.0,0.3608]
[1742483671883,0.1163056,86013.0,86012.0,0.01915793]
[1742483672081,0.1163073,86012.0,86008.0,0.00017434]
[1742483672381,0.116311,86009.0,86008.0,0.11648604]
[1742483672584,0.116311,86009.0,86008.0,0.00017434]
[1742483672799,0.00966397,86011.0,86010.0,0.1163097]
[1742483673093,0.1163064,86013.0,86012.0,0.1163056]
[1742483673302,0.1163056,86015.0,86014.0,0.1163013]
[1742483673496,0.1744577,86015.0,86014.0,0.1163013]
[1742483673695,0.1931,86024.0,86012.0,0.3896]
[1742483673885,4e-05,86016.0,86015.0,0.1744543]
[1742483674087,0.1163416,86016.0,86015.0,0.5352543]
[1742483674595,0.1163416,86016.0,86015.0,2.0352543]
[1742483674790,0.1163016,86016.0,86015.0,1.9189514]
[1742483674995,0.3080016,86016.0,86015.0,0.5499114]
[1742483675189,0.1032713,86017.0,86016.0,0.1163016]
[1742483675389,0.2195715,86017.0,86016.0,0.4949016]
[1742483675591,0.1032713,86017.0,86016.0,0.4949016]
[1742483675992,0.2195715,86017.0,86016.0,0.4949016]
[1742483676193,0.6165715,86017.0,86016.0,0.4949016]
[1742483676787,0.1032713,86017.0,86016.0,0.4949016]
[1742483676994,0.1917,86034.0,86024.0,0.1162908]
[1742483677298,0.3608,86050.0,86035.0,0.1162759]
[1742483677299,0.1162656,86043.0,86035.0,0.1162759]
[1742483677598,4e-05,86036.0,86035.0,0.6080359]
[1742483677796,0.28801218,86043.0,86042.0,0.1162664]
[1742483678097,0.17174668,86043.0,86042.0,0.4770664]
[1742483678485,0.1162664,86042.0,86041.0,0.1903]
[1742483678685,0.1162664,86042.0,86034.0,0.00017434]
[1742483678686,0.4112,86042.0,86034.0,0.00017434]
[1742483678891,0.3608,86035.0,86014.0,0.4771035]
[1742483679089,0.1163016,86016.0,86015.0,0.3828]
[1742483679383,0.1163029,86015.0,86014.0,0.3608]
[1742483679583,0.0581482,86020.0,86018.0,0.1162975]
[1742483679794,0.1162925,86025.0,86024.0,0.1162894]
[1742483679985,0.1162921,86023.0,86022.0,0.058146]
[1742483680295,0.11788749,86023.0,86022.0,0.058146]
[1742483680492,0.00159539,86023.0,86022.0,0.058146]
[1742483680683,0.00159539,86023.0,86022.0,0.248446]
[1742483681292,0.1163308,86024.0,86023.0,0.11432164]
[1742483681495,0.1162921,86023.0,86022.0,0.1903]
[1742483681682,0.1163016,86016.0,86015.0,0.1977]
[1742483681883,0.1163016,86016.0,86014.0,0.3608]
[1742483681884,0.1163029,86015.0,86014.0,0.3608]
[1742483682082,0.3068029,86015.0,86014.0,0.3608]
[1742483683300,0.1163083,86011.0,86010.0,0.00017434]
[1742483683990,0.3036083,86011.0,86010.0,0.00017434]
[1742483684587,0.3036083,86011.0,86010.0,0.00117434]
[1742483685199,0.3036083,86011.0,86010.0,0.11748404]
[1742483685504,0.31299773,86011.0,86010.0,0.00117434]
[1742483686398,0.31299773,86011.0,86010.0,0.00217434]
[1742483686596,0.1163354,85991.0,85990.0,0.3059367]
[1742483686794,0.1163354,85991.0,85990.0,0.1896]
[1742483687192,0.3608,85991.0,85979.0,0.13096]
[1742483687398,0.1163489,85981.0,85980.0,1.6163484]
[1742483687602,0.1163489,85981.0,85980.0,1.62724881]
[1742483687904,0.1163557,85976.0,85975.0,0.247317]
[1742483688497,0.1163557,85976.0,85975.0,0.306857]
[1742483688697,0.1163557,85976.0,85975.0,0.1905]
[1742483688894,0.1163557,85976.0,85975.0,0.306857]
[1742483689297,0.002,85981.0,85975.0,0.25980092]
[1742483689500,0.01091023,85994.0,85975.0,0.25980092]
[1742483689501,0.1163324,85994.0,85988.0,0.1163394]
[1742483689695,0.11651254,85989.0,85988.0,0.2472994]
[1742483689999,0.00017444,85989.0,85988.0,0.2472994]
[1742483690203,0.00017444,85989.0,85988.0,1.7472994]
[1742483691206,0.12051254,85989.0,85988.0,1.7472994]
[1742483691503,0.12051254,85989.0,85988.0,1.6163394]
[1742483691898,0.12051254,85989.0,85988.0,0.1163394]
[1742483692097,0.00817444,85989.0,85988.0,0.1163394]
[1742483692296,0.12451254,85989.0,85988.0,0.1163394]
[1742483692495,0.00817444,85989.0,85988.0,0.1163394]
[1742483692691,0.12451254,85989.0,85988.0,0.1163394]
[1742483693196,0.00817444,85989.0,85988.0,0.3180394]
[1742483694496,0.00817444,85989.0,85988.0,1.8180394]
[1742483694897,0.12451254,85989.0,85988.0,0.3180394]
[1742483695110,0.51311254,85989.0,85988.0,0.3180394]
[1742483696409,0.51311254,85989.0,85988.0,0.2017]
[1742483696709,0.1163421,85986.0,85985.0,0.3614]
[1742483696910,0.1163421,85986.0,85985.0,0.4771435]
[1742483697799,0.1193421,85986.0,85985.0,0.4771435]
[1742483698312,0.1193421,85986.0,85985.0,0.6713435]
[1742483698509,0.00017444,85989.0,85988.0,0.1163394]
[1742483698811,4e-05,86011.0,86009.0,0.116311]
[1742483699000,4e-05,86011.0,86010.0,0.4951097]
[1742483699404,0.1163083,86011.0,86010.0,0.38972878]
[1742483699603,0.1163083,86011.0,86010.0,0.1846]
[1742483699805,0.1163083,86011.0,86008.0,0.13092]
[1742483699806,0.116311,86009.0,86008.0,0.13092]
[1742483700005,0.0581575,86006.0,86002.0,0.00017444]
[1742483700210,0.4771191,86003.0,86002.0,0.00017444]
[1742483700515,0.4771191,86003.0,86002.0,0.0109297]
[1742483700815,0.3906,86003.0,86002.0,0.11649494]
[1742483701019,0.1917,86003.0,86002.0,0.12762322]
[1742483701222,0.1917,86003.0,86002.0,0.50352322]
[1742483701411,0.121311,86009.0,86008.0,0.1163124]
[1742483701714,0.121311,86009.0,86008.0,0.1879]
[1742483701715,0.116311,86009.0,86008.0,0.1879]
[1742483701909,0.1163191,86003.0,86002.0,0.01130272]
[1742483702305,0.3872,86003.0,86002.0,0.48842322]
[1742483702511,0.00504,86011.0,86010.0,0.1163097]
[1742483702816,0.005,86011.0,86010.0,0.4771097]
[1742483703121,4e-05,86013.0,86012.0,0.116307]
[1742483703417,0.1163456,86013.0,86012.0,0.116307]
[1742483703613,0.1163083,86011.0,86010.0,0.4771085]
[1742483703919,0.3109079,86012.0,86011.0,0.1163083]
[1742483704218,0.1946,86012.0,86011.0,0.1163083]
[1742483704817,0.1163151,86006.0,86005.0,0.00068]
[1742483705021,0.49168,86006.0,85973.0,0.1941]
[1742483705316,0.49168,86006.0,85951.0,0.3608]
[1742483705317,0.1163597,85973.0,85960.0,0.7077817]
[1742483705519,0.116376,85961.0,85960.0,0.3469817]
[1742483705704,0.49168,85977.0,85961.0,0.1163758]
[1742483705705,0.0581833,85968.0,85961.0,0.1163758]
[1742483705905,0.0581833,85968.0,85960.0,0.35551922]
[1742483705906,0.3885,85962.0,85960.0,0.35551922]
[1742483706107,0.116376,85961.0,85960.0,0.35551922]
[1742483706309,0.116376,85961.0,85960.0,0.3469817]
[1742483706510,0.500376,85961.0,85960.0,0.3469817]
[1742483707107,0.500376,85961.0,85960.0,0.0943224]
[1742483707317,0.1163841,85955.0,85935.0,0.1164105]
[1742483707504,0.6080641,85955.0,85938.0,0.0582035]
[1742483707709,0.6080641,85955.0,85929.0,0.0582092]
[1742483707904,0.3608,85955.0,85954.0,0.53218742]
[1742483708324,0.0581891,85960.0,85956.0,0.0581911]
[1742483708514,0.0581891,85960.0,85953.0,0.3608]
[1742483708515,0.1745504,85971.0,85970.0,0.1163624]
[1742483708709,0.3608,85971.0,85968.0,0.1163638]
[1742483709022,0.1745466,85971.0,85970.0,0.1163638]
[1742483709208,0.0581814,85971.0,85970.0,0.1163638]
[1742483709516,0.13755551,85972.0,85971.0,0.1163624]
[1742483709517,0.49835551,85972.0,85971.0,0.1163624]
[1742483709716,0.1163652,85970.0,85969.0,0.1163638]
[1742483709920,0.1163787,85960.0,85959.0,0.1163786]
[1742483710116,0.1163787,85959.0,85958.0,0.1163773]
[1742483710314,0.1163949,85947.0,85946.0,0.5353908]
[1742483710717,0.1163949,85947.0,85946.0,0.3608]
[1742483711017,0.1163949,85947.0,85946.0,0.4771963]
[1742483711217,0.2029,85952.0,85951.0,0.1163895]
[1742483711404,0.1745916,85949.0,85948.0,0.0581961]
[1742483711811,0.3854916,85949.0,85948.0,0.0581961]
[1742483712121,0.5739916,85949.0,85948.0,0.0581961]
[1742483712716,0.1163949,85947.0,85946.0,0.4781926]
[1742483712918,0.36084,85953.0,85952.0,0.1163882]
[1742483713222,0.1164282,85953.0,85950.0,0.174583]
[1742483713528,4e-05,85953.0,85952.0,0.1163882]
[1742483713819,0.23001816,85968.0,85952.0,0.1163882]
[1742483713820,0.3272687,85967.0,85962.0,0.1163746]
[1742483714015,0.17183446,85968.0,85962.0,0.1163746]
[1742483714016,0.28820146,85968.0,85962.0,0.4771746]
[1742483714214,0.17183446,85968.0,85962.0,0.4771746]
[1742483714616,0.20707706,85974.0,85967.0,0.0581836]
[1742483714919,0.20707706,85974.0,85973.0,0.4771597]
[1742483715124,0.32343546,85974.0,85973.0,0.13092]
[1742483715318,0.1163652,85969.0,85968.0,0.1999]
[1742483715619,0.1163733,85963.0,85962.0,0.00017444]
[1742483715821,0.4771733,85963.0,85962.0,0.00017444]
[1742483716525,0.0581917,85956.0,85946.0,0.3608]
[1742483716717,0.1163929,85949.0,85948.0,0.1163915]
[1742483716918,0.0581948,85951.0,85950.0,0.1163909]
[1742483717224,0.0581943,85952.0,85950.0,0.1163909]
[1742483717225,0.1163878,85953.0,85952.0,0.1163873]
[1742483717419,0.1163895,85951.0,85950.0,0.0581948]
[1742483717925,0.1163895,85951.0,85946.0,0.4189976]
[1742483717926,0.1163936,85949.0,85948.0,0.1163926]
[1742483718116,0.2001,85950.0,85947.0,0.3181949]
[1742483718309,0.2001,85950.0,85949.0,0.1163922]
[1742483718715,0.1163936,85948.0,85947.0,0.2018]
[1742483718914,0.1163936,85948.0,85947.0,0.3181949]
[1742483719310,0.1163936,85948.0,85940.0,0.0582017]
[1742483719311,0.0582069,85934.0,85929.0,1.2638094]
[1742483719522,0.1164153,85932.0,85931.0,0.01116337]
[1742483720022,0.116418,85930.0,85929.0,0.3608]
[1742483720925,0.116418,85930.0,85929.0,0.4772193]
[1742483721829,0.1164573,85901.0,85891.0,0.41640192]
[1742483722125,0.6081373,85901.0,85893.0,0.01082281]
[1742483722319,0.4772573,85901.0,85893.0,0.01082281]
[1742483722519,0.4772573,85901.0,85899.0,0.1164588]
[1742483722721,0.37014727,85901.0,85900.0,0.2164586]
[1742483722920,0.37014727,85901.0,85900.0,0.6305586]
[1742483723121,0.13088,85919.0,85907.0,0.1164478]
[1742483723319,0.47742096,85909.0,85908.0,0.4141]
[1742483724326,0.47742096,85909.0,85908.0,0.5305478]
[1742483724625,0.48142096,85909.0,85908.0,0.5305478]
[1742483724823,0.48142096,85909.0,85908.0,0.4141]
[1742483725017,0.48142096,85909.0,85908.0,2.0305478]
[1742483725419,0.48642096,85909.0,85908.0,1.9141]
[1742483726218,0.48542096,85909.0,85908.0,1.9141]
[1742483726616,0.36897456,85909.0,85908.0,2.0305478]
[1742483726817,0.2013,85929.0,85908.0,2.65582]
[1742483727022,0.1164329,85920.0,85919.0,0.1164284]
[1742483727221,0.1164329,85920.0,85919.0,0.2113]
[1742483727413,0.1164424,85912.0,85911.0,0.1968]
[1742483727623,0.1164424,85912.0,85911.0,0.3132437]
[1742483727829,0.1164424,85912.0,85911.0,0.1968]
[1742483728020,0.1164424,85912.0,85911.0,0.5245437]
[1742483728215,0.1164424,85912.0,85911.0,0.4081]
[1742483728422,0.1164424,85912.0,85911.0,0.5245437]
[1742483728823,0.004,85929.0,85913.0,0.0582204]
[1742483729034,0.0582139,85923.0,85919.0,0.1164329]
[1742483729328,0.1164329,85919.0,85918.0,0.4159]
[1742483729927,0.3133329,85919.0,85918.0,0.4159]
[1742483730324,0.0582192,85915.0,85908.0,0.4778443]
[1742483730629,0.1164532,85904.0,85903.0,0.00017456]
[1742483731935,0.0582258,85906.0,85903.0,0.00017456]
[1742483731936,0.0582253,85906.0,85905.0,0.1164518]
[1742483732428,0.1746725,85908.0,85907.0,0.1164491]
[1742483732625,0.1969,85914.0,85903.0,0.05840116]
[1742483732626,0.1164421,85913.0,85912.0,0.116441]
[1742483733029,0.0582198,85914.0,85908.0,0.1164468]
[1742483733030,0.0582214,85912.0,85908.0,0.1164468]
[1742483733229,0.1164491,85907.0,85906.0,0.4772505]
[1742483733632,0.0582215,85912.0,85911.0,0.1164437]
[1742483733830,0.005,85908.0,85907.0,0.3638177]
[1742483734127,0.1214478,85908.0,85907.0,0.3638177]
[1742483734323,0.1194478,85908.0,85907.0,0.13092]
[1742483734529,0.1194478,85908.0,85907.0,0.2473691]
[1742483735032,0.1204478,85908.0,85907.0,0.2473691]
[1742483735530,0.1164491,85907.0,85906.0,0.3608]
[1742483735728,0.3208491,85907.0,85906.0,0.3608]
[1742483735925,0.3208491,85907.0,85906.0,0.4772505]
[1742483736127,0.3238491,85907.0,85906.0,0.3608]
[1742483736833,0.3208491,85907.0,85906.0,0.3608]
[1742483737033,0.3248491,85907.0,85906.0,0.4772505]
[1742483737429,0.3248491,85907.0,85906.0,0.3608]
[1742483737923,0.3278491,85907.0,85906.0,0.3608]
[1742483738125,0.1164532,85904.0,85900.0,0.1]
[1742483738326,0.1164532,85904.0,85889.0,0.3608]
[1742483738327,0.0582311,85898.0,85891.0,0.0006]
[1742483738528,0.1164722,85890.0,85889.0,0.3608]
[1742483738832,0.1164912,85876.0,85875.0,0.3608]
[1742483739135,0.1164912,85876.0,85875.0,0.4772925]
[1742483739327,0.3084898,85877.0,85876.0,0.1164912]
[1742483739934,0.1164912,85876.0,85875.0,0.3614]
[1742483740125,0.1164966,85873.0,85872.0,0.1164954]
[1742483740323,0.1084966,85872.0,85871.0,0.477298]
[1742483740523,0.3182966,85872.0,85871.0,0.36941558]
[1742483740838,0.3182966,85872.0,85871.0,0.3608]
[1742483741135,0.3142966,85872.0,85871.0,0.48822988]
[1742483741333,0.3142966,85872.0,85871.0,0.37173188]
[1742483741728,0.3142966,85872.0,85871.0,0.004]
[1742483742125,0.2640489,85872.0,85868.0,8e-05]
[1742483742325,0.1165224,85853.0,85852.0,0.3608]
[1742483742726,0.1165332,85845.0,85833.0,0.13092]
[1742483742925,0.1125332,85845.0,85844.0,0.4773346]
[1742483743227,0.0582592,85856.0,85844.0,0.4773346]
[1742483743228,0.00017467,85861.0,85860.0,0.1165129]
[1742483743429,0.00017467,85861.0,85860.0,0.6082329]
[1742483743632,0.00017467,85861.0,85860.0,0.9690329]
[1742483744821,8e-05,85873.0,85860.0,0.9690329]
[1742483744822,0.0582208,85913.0,85867.0,0.0582517]
[1742483745022,0.1899,85895.0,85873.0,0.4612952]
[1742483745227,0.1164821,85883.0,85873.0,0.4612952]
[1742483745438,0.1899,85888.0,85873.0,0.5922152]
[1742483745739,0.1165739,85874.0,85873.0,0.3448]
[1742483745938,0.1165739,85874.0,85873.0,0.6517952]
[1742483746137,8e-05,85874.0,85873.0,0.6517952]
[1742483746826,0.1164872,85879.0,85878.0,0.1164885]
[1742483747023,0.05841677,85882.0,85881.0,0.1164844]
[1742483747024,0.00017467,85882.0,85881.0,0.1164844]
[1742483747242,0.11665767,85882.0,85881.0,0.49172]
[1742483747736,0.1164912,85876.0,85875.0,0.1905]
[1742483747936,0.1164939,85874.0,85873.0,0.47572]
[1742483748232,0.1899,85881.0,85873.0,0.47572]
[1742483748233,0.0582339,85894.0,85881.0,0.1164844]
[1742483748434,0.11665767,85882.0,85881.0,0.2474044]
[1742483748640,0.00017467,85882.0,85881.0,0.2474044]
[1742483749027,4e-05,85885.0,85884.0,0.1164803]
[1742483749338,4e-05,85891.0,85890.0,0.1164722]
[1742483749530,4e-05,85895.0,85894.0,0.1164668]
[1742483749725,0.2064,85907.0,85906.0,0.1164505]
[1742483749928,0.20707706,85916.0,85908.0,0.1164478]
[1742483750128,8e-05,85910.0,85908.0,0.1164478]
[1742483750644,8e-05,85910.0,85909.0,0.1164464]
[1742483750842,0.17149907,85912.0,85911.0,0.1164437]
[1742483751137,0.1164451,85910.0,85909.0,1.5582226]
[1742483751340,0.2646224,85911.0,85908.0,0.00855554]
[1742483751530,0.1164491,85907.0,85906.0,0.7216]
[1742483751936,0.2074,85909.0,85908.0,0.1164478]
[1742483752131,0.2064,85909.0,85908.0,0.1164478]
[1742483752336,4e-05,85911.0,85910.0,0.1164451]
[1742483752539,0.19184,85911.0,85910.0,0.1164451]
[1742483752739,0.19184,85911.0,85909.0,0.3164451]
[1742483752740,0.1918,85911.0,85909.0,0.3164451]
[1742483752938,0.1164451,85910.0,85909.0,0.3164451]
[1742483753729,0.1164451,85910.0,85909.0,0.4473251]
[1742483754132,0.1164451,85910.0,85909.0,0.13088]
[1742483754343,0.3067451,85910.0,85909.0,0.13088]
[1742483754643,0.1164491,85907.0,85906.0,0.7216]
[1742483755946,0.1204491,85907.0,85906.0,0.8380505]
[1742483756444,0.004,85907.0,85906.0,0.8380505]
[1742483756643,0.1204491,85907.0,85906.0,0.8380505]
[1742483756833,0.004,85907.0,85906.0,0.8380505]
[1742483757729,0.1164451,85910.0,85909.0,0.1164464]
[1742483757929,0.1164491,85907.0,85906.0,0.7216]
[1742483758343,0.1184491,85907.0,85906.0,0.7216]
[1742483758539,0.1184491,85907.0,85906.0,0.8380505]
[1742483758740,0.002,85907.0,85906.0,0.8380505]
[1742483758940,0.1917,85908.0,85907.0,0.1164491]
[1742483759140,0.002,85910.0,85909.0,0.1164464]
[1742483759847,0.00017467,85917.0,85916.0,0.1164369]
[1742483760037,0.11665027,85917.0,85916.0,0.4772369]
[1742483760233,0.11665027,85917.0,85908.0,1.70514]
[1742483760234,0.0582215,85912.0,85908.0,0.00064]
[1742483760540,0.0582215,85912.0,85897.0,0.3608]
[1742483760541,0.1164491,85907.0,85902.0,0.13084]
[1742483760741,0.1164491,85907.0,85903.0,0.12497914]
[1742483760947,0.0582226,85910.0,85909.0,0.1164451]
[1742483761141,0.3816,85911.0,85910.0,0.1164451]
[1742483761142,0.4980451,85911.0,85910.0,0.1164451]
[1742483761349,0.3063451,85911.0,85910.0,0.1164451]
[1742483761652,0.3063451,85911.0,85910.0,0.1909]
[1742483761845,0.11661027,85917.0,85916.0,0.1164369]
[1742483762033,0.00017467,85917.0,85916.0,0.1164369]
[1742483762242,0.00017467,85917.0,85916.0,0.4772369]
[1742483762540,4e-05,85929.0,85928.0,0.1164207]
[1742483762742,0.0582046,85937.0,85931.0,0.1164166]
[1742483762938,0.20703706,85939.0,85931.0,0.4772166]
[1742483763141,0.20703706,85939.0,85938.0,0.1164071]
[1742483763349,0.20703706,85939.0,85938.0,0.6080471]
[1742483764544,0.32344286,85939.0,85938.0,0.4772071]
[1742483764744,0.32344286,85939.0,85938.0,0.3608]
[1742483764941,0.32344286,85939.0,85938.0,0.4772071]
[1742483765142,0.32844286,85939.0,85938.0,0.3608]
[1742483765342,0.1164166,85931.0,85930.0,0.00017456]
[1742483765548,0.0582047,85937.0,85930.0,0.00017456]
[1742483765549,0.1164114,85937.0,85930.0,0.36097456]
[1742483765858,0.1973,85936.0,85933.0,0.0582063]
[1742483766159,0.1164166,85931.0,85930.0,0.36097456]
[1742483766353,0.1164166,85931.0,85930.0,0.47739256]
[1742483766761,0.3137098,85936.0,85935.0,0.1164112]
[1742483766961,0.1973,85936.0,85935.0,0.1164112]
[1742483767256,0.3137098,85936.0,85935.0,0.1164112]
[1742483767952,0.1973,85936.0,85935.0,0.1164112]
[1742483768152,0.005,85937.0,85936.0,0.1164098]
[1742483768347,0.1164405,85943.0,85942.0,0.1164017]
[1742483768544,4e-05,85943.0,85942.0,0.1164017]
[1742483768747,4e-05,85943.0,85942.0,0.3083017]